bitfinex/quotes_BTCUSD_20251224
["timestamp","ask_amount","ask_price","bid_price","bid_amount"]
[1766589897679,0.01164,86695.0,86685.0,0.01153602]
[1766589897879,0.01153482,86694.0,86684.0,0.01153615]
[1766589898100,0.01153482,86694.0,86680.0,0.01153668]
[1766589898101,0.06921057,86692.0,86681.0,0.01153655]
[1766589898481,0.01153522,86691.0,86680.0,0.06921962]
[1766589898691,0.01153548,86689.0,86678.0,0.01153695]
[1766589898891,0.01164,86695.0,86682.0,0.01153642]
[1766589899093,0.01153495,86693.0,86682.0,0.01153642]
[1766589899313,0.0117468,86695.0,86683.0,0.01153628]
[1766589899518,0.29632,86709.0,86697.0,0.01153442]
[1766589899693,0.29632,86709.0,86691.0,0.01164]
[1766589899694,0.00011,86705.0,86691.0,0.01164]
[1766589899878,0.00011,86705.0,86693.0,0.01153495]
[1766589900085,0.00011,86705.0,86701.0,0.01153389]
[1766589900288,0.06918658,86722.0,86707.0,0.01153309]
[1766589900485,0.01164,86721.0,86709.0,0.01153282]
[1766589900731,0.02317123,86721.0,86710.0,0.01153269]
[1766589900929,0.02317123,86721.0,86709.0,0.06919664]
[1766589901173,0.01153149,86719.0,86714.0,0.0276807]
[1766589901381,0.01153163,86718.0,86714.0,0.0275747]
[1766589901531,0.01153149,86719.0,86714.0,0.0275747]
[1766589901736,0.01153282,86709.0,86701.0,0.01164]
[1766589901939,0.01153203,86715.0,86701.0,0.02317389]
[1766589902165,0.01153203,86715.0,86701.0,0.01164]
[1766589902166,0.01153229,86713.0,86701.0,0.01164]
[1766589902361,0.01153269,86710.0,86701.0,0.01164]
[1766589902907,0.29632,86717.0,86701.0,0.01164]
[1766589902908,0.01164096,86723.0,86701.0,0.24231518]
[1766589903275,0.29632,86733.0,86730.0,0.01153003]
[1766589903511,0.01164,86737.0,86721.0,0.01164]
[1766589903714,0.01152976,86732.0,86721.0,0.01164]
[1766589903924,0.01152976,86732.0,86714.0,0.0276807]
[1766589903925,0.30785123,86721.0,86707.0,0.01164]
[1766589904129,0.01153176,86717.0,86706.0,0.01164]
[1766589904461,0.01153229,86713.0,86706.0,0.01164]
[1766589904669,0.01153256,86711.0,86706.0,0.01164]
[1766589905023,0.01153242,86712.0,86706.0,0.00057283]
[1766589905258,0.01153256,86711.0,86706.0,0.00057283]
[1766589905448,0.23063302,86718.0,86706.0,0.00057283]
[1766589905449,0.01153216,86714.0,86706.0,0.00057283]
[1766589905593,0.05766521,86708.0,86706.0,0.00057283]
[1766589905789,0.01153216,86714.0,86706.0,0.00057283]
[1766589905994,0.01153309,86707.0,86701.0,0.01164]
[1766589906191,0.01153256,86711.0,86701.0,0.01164]
[1766589906451,0.01153242,86712.0,86701.0,0.01164]
[1766589906652,0.01153309,86707.0,86701.0,0.01164]
[1766589906950,0.30796,86716.0,86663.0,0.46154975]
[1766589906951,0.01153402,86700.0,86694.0,0.01164]
[1766589907151,0.01153389,86701.0,86694.0,0.01164]
[1766589907383,0.30785322,86706.0,86694.0,0.01164]
[1766589907569,0.01153389,86701.0,86694.0,0.01164]
[1766589907772,0.01153402,86700.0,86694.0,0.01164]
[1766589907976,0.01153442,86697.0,86689.0,0.01164]
[1766589908180,0.01153256,86711.0,86700.0,0.01153402]
[1766589908380,0.46117825,86735.0,86711.0,0.00055]
[1766589908381,0.01153189,86716.0,86711.0,0.00055]
[1766589908540,0.01153216,86714.0,86711.0,0.00055]
[1766589908759,0.01153256,86711.0,86701.0,0.01164]
[1766589908963,0.01153336,86705.0,86701.0,0.01164]
[1766589909160,0.01153322,86706.0,86694.0,0.01164]
[1766589909389,0.06920424,86700.0,86694.0,0.01164]
[1766589909561,0.01153402,86700.0,86694.0,0.01164]
[1766589909764,0.01153415,86699.0,86694.0,0.01164]
[1766589910014,0.01153375,86702.0,86694.0,0.01164]
[1766589910315,0.29632,86706.0,86695.0,0.01153469]
[1766589910504,0.01153362,86703.0,86694.0,0.01164]
[1766589910735,0.01153402,86700.0,86694.0,0.01164]
[1766589910929,0.01153389,86701.0,86694.0,0.01164]
[1766589911235,0.06920197,86703.0,86694.0,0.01164]
[1766589911384,0.35398619,86706.0,86695.0,0.05767336]
[1766589911580,0.35398619,86706.0,86694.0,0.01164]
[1766589911581,0.01153375,86702.0,86694.0,0.01164]
[1766589911780,0.01153415,86699.0,86689.0,0.01153548]
[1766589912015,0.30785322,86706.0,86693.0,0.01153495]
[1766589912216,0.30785322,86706.0,86696.0,0.01153455]
[1766589912465,0.29632,86718.0,86706.0,0.000549]
[1766589912603,0.30796,86718.0,86707.0,0.05766547]
[1766589912948,0.01153176,86717.0,86706.0,0.06919927]
[1766589913104,0.06919141,86716.0,86705.0,0.01153336]
[1766589913292,0.01153216,86714.0,86704.0,0.01153349]
[1766589913494,0.01153203,86715.0,86704.0,0.06920095]
[1766589913737,0.01153229,86713.0,86702.0,0.06920194]
[1766589913936,0.01153229,86713.0,86703.0,0.06920173]
[1766589914147,0.01153216,86714.0,86703.0,0.06920173]
[1766589914322,0.01153216,86714.0,86704.0,0.01153349]
[1766589914881,0.01153216,86714.0,86701.0,0.02317389]
[1766589914882,0.01153229,86713.0,86701.0,0.01164]
[1766589915008,0.30796,86718.0,86707.0,0.06919836]
[1766589915204,0.30796,86718.0,86708.0,0.01153296]
[1766589915407,0.30796,86718.0,86710.0,0.01153269]
[1766589915827,0.30796,86718.0,86709.0,0.06919635]
[1766589916026,0.01153056,86726.0,86718.0,0.000549]
[1766589916249,0.29632,86731.0,86717.0,0.01153176]
[1766589916250,0.01153003,86730.0,86717.0,0.01153176]
[1766589916447,0.01153043,86727.0,86716.0,0.02317189]
[1766589916667,0.01164,86732.0,86716.0,0.01164]
[1766589916964,0.01153043,86727.0,86717.0,0.01153176]
[1766589917121,4.3e-07,86727.0,86718.0,0.01153163]
[1766589917330,4.3e-07,86727.0,86718.0,0.06918964]
[1766589917540,4.3e-07,86727.0,86719.0,0.01153149]
[1766589917740,4.3e-07,86727.0,86718.0,0.06918964]
[1766589917940,4.3e-07,86727.0,86724.0,0.01153083]
[1766589918142,0.02316883,86739.0,86729.0,0.01153016]
[1766589918375,0.02316883,86739.0,86728.0,0.0115303]
[1766589918376,0.01164,86739.0,86728.0,0.0115303]
[1766589918528,0.05764486,86738.0,86726.0,0.01153056]
[1766589918728,0.01164,86739.0,86726.0,0.01153056]
[1766589918927,0.01164,86739.0,86732.0,0.01152976]
[1766589919195,0.01152883,86739.0,86715.0,0.04616]
[1766589919382,0.06917416,86738.0,86727.0,0.01153043]
[1766589919584,0.01164,86740.0,86723.0,0.01164]
[1766589919585,0.01152963,86733.0,86723.0,0.01164]
[1766589919742,0.01152817,86744.0,86730.0,0.01153003]
[1766589919965,0.01164,86743.0,86734.0,0.0065295]
[1766589920143,0.01152844,86742.0,86730.0,0.01164]
[1766589920373,0.0115303,86728.0,86716.0,0.01153189]
[1766589920545,0.01153043,86727.0,86717.0,0.01164]
[1766589920905,0.01153096,86723.0,86717.0,0.01164]
[1766589921277,0.35397472,86724.0,86717.0,0.01164]
[1766589921278,0.29632,86724.0,86717.0,0.01164]
[1766589922003,0.29632,86724.0,86717.0,0.02317176]
[1766589922204,0.29632,86724.0,86718.0,0.01153163]
[1766589922412,0.01164,86726.0,86724.0,0.000549]
[1766589922615,0.01164,86726.0,86717.0,0.01164]
[1766589922794,0.00055,86717.0,86711.0,0.01164]
[1766589922995,0.01153163,86718.0,86697.0,0.04616]
[1766589922996,0.01153322,86706.0,86697.0,0.04616]
[1766589923197,0.0276807,86727.0,86697.0,0.01153442]
[1766589923198,0.29632,86709.0,86697.0,0.01153442]
[1766589923403,0.06919539,86711.0,86699.0,0.01153415]
[1766589923566,0.03096292,86745.0,86707.0,0.01153309]
[1766589923567,0.01153083,86724.0,86707.0,0.01153309]
[1766589923760,0.01153149,86719.0,86708.0,0.01164]
[1766589923968,0.06918743,86721.0,86709.0,0.06919693]
[1766589924178,0.30785083,86724.0,86713.0,0.01153229]
[1766589924387,0.01164,86725.0,86714.0,0.01153216]
[1766589924618,0.01153083,86724.0,86714.0,0.01153216]
[1766589924834,0.01153096,86723.0,86713.0,0.01153229]
[1766589925050,0.01153109,86722.0,86712.0,0.01153242]
[1766589925371,0.01153096,86723.0,86712.0,0.01153242]
[1766589925493,0.01153109,86722.0,86711.0,0.06919477]
[1766589925694,0.01153109,86722.0,86712.0,0.01153242]
[1766589925890,0.23062639,86721.0,86708.0,0.01164]
[1766589926096,0.000549,86712.0,86708.0,0.01164]
[1766589926503,0.01153242,86712.0,86708.0,0.01164]
[1766589926950,0.06919414,86713.0,86708.0,0.01164]
[1766589927123,0.01153229,86713.0,86708.0,0.01164]
[1766589927322,0.01153216,86714.0,86708.0,0.01164]
[1766589927591,0.03096292,86738.0,86708.0,0.01164]
[1766589927592,0.06918979,86718.0,86708.0,0.01164]
[1766589927795,0.01153189,86716.0,86708.0,0.01164]
[1766589927922,0.35397736,86720.0,86709.0,0.01153282]
[1766589928127,0.21499,86732.0,86718.0,0.01153163]
[1766589928349,0.0115303,86728.0,86718.0,0.01153163]
[1766589928546,0.01153016,86729.0,86718.0,0.01153163]
[1766589928747,0.01153003,86730.0,86716.0,0.01153189]
[1766589928984,0.01153003,86730.0,86714.0,0.02317216]
[1766589928985,0.23061289,86726.0,86714.0,0.01164]
[1766589929293,0.000549,86716.0,86714.0,0.01164]
[1766589929582,0.01164,86729.0,86717.0,0.01153176]
[1766589929782,0.01153016,86729.0,86718.0,0.01153163]
[1766589929958,0.01153016,86729.0,86719.0,0.01153149]
[1766589930160,0.05764886,86732.0,86721.0,0.05765616]
[1766589930362,0.01153003,86730.0,86720.0,0.01164]
[1766589930588,0.01153016,86729.0,86720.0,0.01164]
[1766589930934,0.01153003,86730.0,86720.0,0.02317136]
[1766589931130,0.0115299,86731.0,86720.0,0.02317136]
[1766589931131,0.06917983,86731.0,86720.0,0.02317136]
[1766589931387,0.01152937,86735.0,86724.0,0.01153083]
[1766589931625,0.0115295,86734.0,86722.0,0.05765507]
[1766589931857,0.0115295,86734.0,86723.0,0.01153096]
[1766589932263,0.01153109,86722.0,86707.0,0.01153309]
[1766589932658,0.22707096,86723.0,86713.0,0.01153229]
[1766589932840,0.0115299,86731.0,86717.0,0.01153176]
[1766589933043,0.01153003,86730.0,86719.0,0.01153149]
[1766589933247,0.23815963,86733.0,86716.0,0.02317189]
[1766589933248,0.22663,86733.0,86716.0,0.01164]
[1766589933407,0.0115303,86728.0,86717.0,0.01153176]
[1766589933613,0.22663,86733.0,86721.0,0.01153123]
[1766589933823,0.22663,86733.0,86722.0,0.01153109]
[1766589934043,0.23815963,86733.0,86722.0,0.01153109]
[1766589934246,0.0115299,86731.0,86721.0,0.01153123]
[1766589934419,0.0115299,86731.0,86714.0,0.01164]
[1766589934420,0.01153083,86724.0,86713.0,0.0276807]
[1766589934633,0.01153016,86729.0,86714.0,0.01153216]
[1766589934805,0.05765268,86727.0,86715.0,0.01153203]
[1766589935009,0.05765061,86730.0,86717.0,0.05765868]
[1766589935338,0.06918268,86727.0,86716.0,0.01153189]
[1766589935521,0.01153163,86718.0,86704.0,0.01153349]
[1766589935734,0.06919256,86715.0,86704.0,0.05765349]
[1766589935915,0.01153176,86717.0,86708.0,0.01164]
[1766589936119,0.01153189,86716.0,86708.0,0.01164]
[1766589936536,0.05766011,86716.0,86708.0,0.01164]
[1766589936791,0.01153242,86712.0,86708.0,0.010541]
[1766589937000,0.06919427,86714.0,86708.0,0.010541]
[1766589937215,0.01153256,86711.0,86708.0,0.010541]
[1766589937767,0.01153269,86710.0,86706.0,0.01164]
[1766589937944,0.05766414,86709.0,86706.0,0.01164]
[1766589938143,0.01153256,86711.0,86706.0,0.01164]
[1766589938361,0.05766217,86712.0,86706.0,0.01164]
[1766589938559,0.01153229,86713.0,86706.0,0.01164]
[1766589938719,0.01153269,86710.0,86706.0,0.01164]
[1766589938947,0.05766414,86709.0,86706.0,0.01164]
[1766589939150,0.05766027,86715.0,86703.0,0.01153362]
[1766589939403,0.18965,86716.0,86701.0,0.01164]
[1766589939404,0.01153269,86710.0,86701.0,0.01164]
[1766589939598,0.05766414,86709.0,86701.0,0.01164]
[1766589939805,0.0576648,86708.0,86701.0,0.01164]
[1766589940010,0.05767219,86697.0,86685.0,0.05778953]
[1766589940220,0.06920629,86698.0,86687.0,0.01164]
[1766589940426,0.01153415,86699.0,86688.0,0.06921357]
[1766589940650,0.18965,86700.0,86699.0,0.001099]
[1766589940855,0.01153322,86706.0,86699.0,0.001099]
[1766589941007,0.06919936,86706.0,86699.0,0.001099]
[1766589941207,0.01153322,86706.0,86696.0,0.01153455]
[1766589941409,0.06920147,86704.0,86693.0,0.01153495]
[1766589941647,0.01153336,86705.0,86695.0,0.01153469]
[1766589942217,0.06920033,86705.0,86694.0,0.06920891]
[1766589942420,0.01153349,86704.0,86692.0,0.06920996]
[1766589942619,0.01153336,86705.0,86694.0,0.01153482]
[1766589942829,0.01153349,86704.0,86694.0,0.01153482]
[1766589943001,0.01153362,86703.0,86692.0,0.06921026]
[1766589943206,0.02317349,86704.0,86693.0,0.06920917]
[1766589943445,0.01153362,86703.0,86692.0,0.06921026]
[1766589943640,0.01164,86704.0,86695.0,0.05767288]
[1766589943841,0.01153362,86703.0,86693.0,0.01153495]
[1766589944155,0.01164,86704.0,86703.0,0.000549]
[1766589944332,0.01153362,86703.0,86693.0,0.01153495]
[1766589944656,0.02317349,86704.0,86693.0,0.06920968]
[1766589944857,0.01164,86704.0,86694.0,0.06920875]
[1766589945021,0.18965,86706.0,86704.0,0.000549]
[1766589945237,0.01164,86705.0,86704.0,0.000549]
[1766589945421,0.01164,86705.0,86694.0,0.01153482]
[1766589945422,0.06920257,86702.0,86690.0,0.01153535]
[1766589945625,0.01153349,86704.0,86694.0,0.01153482]
[1766589945824,0.01164,86705.0,86698.0,0.01153429]
[1766589946026,0.01164,86705.0,86696.0,0.06920703]
[1766589946245,0.01164,86705.0,86697.0,0.01153442]
[1766589946558,0.01164,86705.0,86698.0,0.01153429]
[1766589946762,0.06920241,86703.0,86692.0,0.05767536]
[1766589946926,0.01164,86705.0,86703.0,0.000549]
[1766589947325,0.18965,86706.0,86703.0,0.000549]
[1766589947524,0.05766778,86704.0,86693.0,0.02317495]
[1766589947709,0.01153375,86702.0,86693.0,0.01164]
[1766589947912,0.01153389,86701.0,86693.0,0.01164]
[1766589948108,0.01153336,86705.0,86694.0,0.01153482]
[1766589948338,0.01153362,86703.0,86693.0,0.01164]
[1766589948539,0.06920223,86703.0,86693.0,0.01164]
[1766589948739,0.01153375,86702.0,86693.0,0.01164]
[1766589948955,0.01153415,86699.0,86693.0,0.01164]
[1766589949131,0.06920574,86698.0,86693.0,0.01164]
[1766589949535,0.01153415,86699.0,86693.0,0.01164]
[1766589949738,0.06920353,86701.0,86693.0,0.01164]
[1766589949958,0.06920501,86699.0,86693.0,0.01164]
[1766589950133,0.20118375,86702.0,86693.0,0.01164]
[1766589950534,0.01164,86706.0,86702.0,0.00055]
[1766589950733,0.01153349,86704.0,86694.0,0.01153482]
[1766589950947,0.01153389,86701.0,86693.0,0.01164]
[1766589951315,0.01153402,86700.0,86693.0,0.01164]
[1766589951461,0.06920578,86698.0,86693.0,0.01164]
[1766589951692,0.01153442,86697.0,86693.0,0.01164]
[1766589951875,0.01153415,86699.0,86693.0,0.01164]
[1766589952083,0.05766603,86707.0,86699.0,0.00055]
[1766589952328,0.20118362,86703.0,86693.0,0.08084907]
[1766589952505,0.18965,86703.0,86696.0,0.06920729]
[1766589952705,0.18965,86703.0,86695.0,0.01153469]
[1766589952943,0.18965,86703.0,86694.0,0.06920892]
[1766589953146,0.03424682,86704.0,86694.0,0.01153482]
[1766589953291,0.01153336,86705.0,86703.0,0.00055]
[1766589953496,0.06920095,86704.0,86694.0,0.01153482]
[1766589953833,0.01153336,86705.0,86695.0,0.01153469]
[1766589954078,0.01153362,86703.0,86693.0,0.01164]
[1766589954249,0.01153375,86702.0,86693.0,0.01164]
[1766589954451,0.01153349,86704.0,86702.0,0.00055]
[1766589954654,0.02317322,86706.0,86693.0,0.08084939]
[1766589954852,0.01153336,86705.0,86695.0,0.01153469]
[1766589955031,0.06920029,86705.0,86694.0,0.01153482]
[1766589955232,0.06920105,86704.0,86693.0,0.02317495]
[1766589955439,0.06920024,86705.0,86694.0,0.01153482]
[1766589955645,0.01153336,86705.0,86694.0,0.0692077]
[1766589955856,0.08083856,86707.0,86694.0,0.0692089]
[1766589956237,0.01153322,86706.0,86695.0,0.06920757]
[1766589956438,0.06920016,86705.0,86694.0,0.0692089]
[1766589956656,0.0691995,86706.0,86695.0,0.01153469]
[1766589956859,0.01153123,86721.0,86706.0,0.00055]
[1766589957078,0.2173307,86727.0,86706.0,0.00055]
[1766589957079,0.18965,86727.0,86712.0,0.01153242]
[1766589957277,0.01153096,86723.0,86711.0,0.05766281]
[1766589957495,0.01164,86725.0,86716.0,0.01153189]
[1766589957620,0.01164,86727.0,86717.0,0.01153176]
[1766589957857,0.18965,86737.0,86728.0,0.05765093]
[1766589958058,0.0418674,86765.0,86733.0,0.01152963]
[1766589958059,0.18965,86746.0,86733.0,0.01152963]
[1766589958266,0.01152817,86744.0,86733.0,0.01152963]
[1766589958461,0.05764112,86744.0,86732.0,0.0691786]
[1766589958681,0.00010255,86744.0,86733.0,0.06917716]
[1766589958880,0.0115287,86740.0,86728.0,0.0231703]
[1766589959115,0.0115287,86740.0,86730.0,0.01153003]
[1766589959462,0.00010255,86744.0,86741.0,0.01152857]
[1766589959684,0.01152565,86763.0,86751.0,0.01152724]
[1766589959888,0.01152565,86763.0,86752.0,0.01152711]
[1766589960098,0.01152578,86762.0,86749.0,0.01152751]
[1766589960385,0.01152604,86760.0,86749.0,0.01152751]
[1766589960590,0.01152604,86760.0,86750.0,0.01152737]
[1766589960734,0.00051,86765.0,86757.0,0.01152644]
[1766589960937,0.0004,86771.0,86755.0,0.01152671]
[1766589961170,0.16236,86773.0,86753.0,0.01164]
[1766589961171,0.0004,86775.0,86766.0,0.05762591]
[1766589961368,0.01194128,86779.0,86766.0,0.01164]
[1766589961538,0.0276807,86775.0,86747.0,0.0276807]
[1766589961721,0.0276807,86775.0,86750.0,0.01152737]
[1766589961722,0.01152565,86763.0,86750.0,0.01152737]
[1766589961923,0.01152551,86764.0,86752.0,0.06916248]
[1766589962149,0.01152578,86762.0,86751.0,0.01152724]
[1766589962363,0.01152565,86763.0,86751.0,0.0691633]
[1766589962568,0.05762706,86765.0,86752.0,0.01152711]
[1766589962742,0.01152405,86775.0,86763.0,0.000549]
[1766589962964,0.01152405,86775.0,86762.0,0.01152578]
[1766589963167,0.01152405,86775.0,86763.0,0.06915364]
[1766589963374,0.01152485,86769.0,86758.0,0.01164]
[1766589963575,0.06914883,86770.0,86758.0,0.02316631]
[1766589963801,0.01152485,86769.0,86758.0,0.02316631]
[1766589964000,0.01152485,86769.0,86758.0,0.01164]
[1766589964176,0.01152511,86767.0,86758.0,0.01164]
[1766589964582,0.01152565,86763.0,86758.0,0.01164]
[1766589964780,0.01152511,86767.0,86758.0,0.01164]
[1766589965002,0.05762735,86765.0,86758.0,0.01164]
[1766589965243,0.05762935,86762.0,86758.0,0.01164]
[1766589965455,0.01152817,86744.0,86730.0,0.01153003]
[1766589965581,0.0115279,86746.0,86731.0,0.01164]
[1766589965582,0.0691684,86745.0,86731.0,0.01164]
[1766589965791,0.01152844,86742.0,86737.0,0.00011]
[1766589965988,0.06916763,86746.0,86737.0,0.00011]
[1766589966191,0.05764364,86740.0,86737.0,0.00011]
[1766589966396,0.0115283,86743.0,86737.0,0.00011]
[1766589966624,0.0576402,86745.0,86743.0,0.000549]
[1766589966995,0.05764038,86745.0,86743.0,0.000549]
[1766589967201,0.01152857,86741.0,86737.0,0.00011]
[1766589967346,0.01164,86749.0,86737.0,0.00011]
[1766589967528,0.01152671,86755.0,86741.0,0.00055]
[1766589967732,0.01164,86754.0,86744.0,0.01152817]
[1766589968054,3.28e-06,86759.0,86745.0,0.01164]
[1766589968252,0.0276807,86757.0,86745.0,0.01164]
[1766589968461,0.06915569,86761.0,86746.0,0.05763913]
[1766589968792,0.01152418,86774.0,86761.0,0.01207491]
[1766589968994,0.01152379,86777.0,86763.0,0.01152565]
[1766589969405,0.01152418,86774.0,86763.0,0.01152565]
[1766589969626,4.7e-07,86775.0,86763.0,0.06915381]
[1766589969774,0.01152452,86775.0,86762.0,0.02316578]
[1766589969969,0.00010711,86775.0,86765.0,0.01152538]
[1766589970318,0.00010711,86775.0,86762.0,0.01164]
[1766589970319,0.00011,86778.0,86768.0,0.01152498]
[1766589970491,0.0576207,86775.0,86769.0,0.01164]
[1766589970672,0.01152392,86776.0,86769.0,0.01174664]
[1766589970876,0.00011,86778.0,86776.0,0.000549]
[1766589971594,0.00011,86778.0,86769.0,0.01174664]
[1766589971797,0.01152379,86777.0,86769.0,0.01174664]
[1766589971984,0.00011,86778.0,86769.0,0.01174664]
[1766589972622,0.01163365,86778.0,86769.0,0.01174664]
[1766589973208,0.00011,86778.0,86769.0,0.01174664]
[1766589973406,0.00011,86778.0,86769.0,0.02327149]
[1766589973779,0.01152299,86783.0,86772.0,0.01152445]
[1766589974046,0.06913721,86784.0,86770.0,0.05762355]
[1766589974194,0.01152299,86783.0,86771.0,0.01152458]
[1766589974398,0.01152286,86784.0,86772.0,0.01152445]
[1766589974606,0.02316272,86785.0,86773.0,0.01152432]
[1766589974811,0.16236,86788.0,86778.0,0.01152365]
[1766589975047,0.01152206,86790.0,86776.0,0.0691431]
[1766589975048,0.02316219,86789.0,86776.0,0.0691431]
[1766589975411,0.01152233,86788.0,86775.0,0.02316405]
[1766589975648,0.01152259,86786.0,86775.0,0.02316405]
[1766589975908,0.08077319,86789.0,86776.0,0.01152392]
[1766589976074,0.01152126,86796.0,86781.0,0.01152325]
[1766589976241,0.01204,86795.0,86789.0,0.001099]
[1766589976445,0.06912566,86799.0,86788.0,0.01164]
[1766589976688,4.8e-07,86790.0,86788.0,0.01164]
[1766589977042,0.01152272,86785.0,86772.0,0.05762176]
[1766589977247,0.24197762,86785.0,86775.0,0.01164]
[1766589977448,0.01152352,86779.0,86764.0,0.0276807]
[1766589977671,0.01152405,86775.0,86770.0,0.01164]
[1766589978017,0.17388352,86779.0,86770.0,0.01164]
[1766589978145,0.01164,86787.0,86779.0,0.00055]
[1766589978348,0.01152286,86784.0,86779.0,0.00055]
[1766589978530,0.01164048,86790.0,86779.0,0.00055]
[1766589978531,0.01152259,86786.0,86779.0,0.00055]
[1766589978738,0.01152272,86785.0,86770.0,0.01164]
[1766589978936,0.069138,86783.0,86770.0,0.02316472]
[1766589979172,0.01152312,86782.0,86770.0,0.02316472]
[1766589979372,0.01152299,86783.0,86771.0,0.01152458]
[1766589979536,0.01152312,86782.0,86770.0,0.02316472]
[1766589979740,0.01152365,86778.0,86770.0,0.01164]
[1766589979935,0.01152325,86781.0,86778.0,0.00055]
[1766589980356,0.01152325,86781.0,86777.0,0.01164]
[1766589980559,0.06913957,86781.0,86777.0,0.0116]
[1766589980758,0.06914194,86778.0,86777.0,0.011051]
[1766589980957,0.01152339,86780.0,86777.0,0.011051]
[1766589981177,0.06914165,86780.0,86777.0,0.011051]
[1766589981381,0.01152325,86781.0,86777.0,0.011051]
[1766589981584,0.06914049,86780.0,86777.0,0.011051]
[1766589981894,0.01152339,86780.0,86777.0,0.011051]
[1766589982108,0.01152286,86784.0,86777.0,0.011051]
[1766589982317,0.06913636,86785.0,86777.0,0.011051]
[1766589982521,0.01152286,86784.0,86777.0,0.011051]
[1766589982817,0.06913569,86786.0,86777.0,0.011051]
[1766589983034,0.06913582,86786.0,86777.0,0.011051]
[1766589983263,0.06938824,86787.0,86777.0,0.011051]
[1766589983603,0.0117759,86787.0,86777.0,0.011051]
[1766589983798,0.01152339,86780.0,86777.0,0.011051]
[1766589984024,0.00025344,86787.0,86775.0,0.02312405]
[1766589984270,0.00025344,86787.0,86780.0,0.000549]
[1766589984454,0.00025344,86787.0,86775.0,0.0116]
[1766589984657,0.06938829,86787.0,86775.0,0.0116]
[1766589984959,0.06913685,86786.0,86775.0,0.0116]
[1766589985135,0.01152299,86783.0,86775.0,0.0116]
[1766589985342,0.24196614,86789.0,86775.0,0.0116]
[1766589985343,0.05761231,86787.0,86775.0,0.0116]
[1766589985514,0.01152325,86781.0,86775.0,0.0116]
[1766589985711,0.06914165,86779.0,86775.0,0.0116]
[1766589985963,0.05761961,86776.0,86775.0,0.0116]
[1766589986143,0.01152352,86779.0,86775.0,0.0116]
[1766589986342,0.01152352,86779.0,86776.0,0.000549]
[1766589986658,0.01152365,86778.0,86775.0,0.0116]
[1766589987583,0.01152365,86778.0,86769.0,0.00010664]
[1766589987584,0.01152405,86775.0,86769.0,0.00010664]
[1766589987945,0.01152379,86777.0,86769.0,0.00010664]
[1766589988155,0.0576236,86770.0,86769.0,0.00010664]
[1766589988359,0.2254436,86770.0,86769.0,0.00010664]
[1766589988557,0.2254436,86770.0,86756.0,0.16002658]
[1766589988558,0.17934472,86770.0,86757.0,0.0116]
[1766589988792,0.0116,86774.0,86759.0,0.01163618]
[1766589989113,0.01152472,86770.0,86759.0,0.00011]
[1766589989247,0.01152565,86763.0,86759.0,0.00011]
[1766589989460,0.01152538,86765.0,86759.0,0.00011]
[1766589989693,0.01152538,86765.0,86756.0,0.1601]
[1766589990129,0.00010664,86774.0,86765.0,0.00011]
[1766589990302,0.0116,86777.0,86770.0,0.01152472]
[1766589990709,0.0116,86777.0,86765.0,0.01152538]
[1766589990710,4.2e-07,86775.0,86763.0,0.0116]
[1766589990903,0.01152447,86775.0,86763.0,0.02323229]
[1766589991142,4.2e-07,86775.0,86764.0,0.01152551]
[1766589991343,4.2e-07,86775.0,86763.0,0.02323229]
[1766589991504,4.2e-07,86775.0,86765.0,0.01152538]
[1766589991702,4.2e-07,86775.0,86766.0,0.01152525]
[1766589991920,4.2e-07,86775.0,86763.0,0.01170664]
[1766589992121,0.01163352,86779.0,86763.0,0.01170664]
[1766589992122,0.16782,86789.0,86774.0,0.01152418]
[1766589992372,0.16782,86789.0,86777.0,0.06914269]
[1766589992546,0.0116,86788.0,86776.0,0.01152392]
[1766589992887,0.01152286,86784.0,86771.0,0.0116]
[1766589993055,0.01152312,86782.0,86771.0,0.0116]
[1766589993367,0.06913888,86782.0,86771.0,0.0116]
[1766589993664,4.8e-07,86790.0,86778.0,0.01152365]
[1766589993881,4.8e-07,86790.0,86783.0,0.01152299]
[1766589994028,4.8e-07,86790.0,86784.0,0.0576143]
[1766589994210,0.011521,86798.0,86785.0,0.06913576]
[1766589994415,0.0116,86797.0,86786.0,0.01152259]
[1766589994653,0.16782,86816.0,86803.0,0.01152033]
[1766589994854,0.16782,86816.0,86797.0,0.00011]
[1766589994855,0.0116,86815.0,86810.0,0.01151941]
[1766589995073,0.16782,86816.0,86810.0,0.01151941]
[1766589995288,4.03e-06,86823.0,86813.0,0.01151901]
[1766589995595,0.01160403,86823.0,86814.0,0.01151887]
[1766589995783,0.00035982,86823.0,86817.0,0.01151848]
[1766589995988,0.012,86827.0,86809.0,0.01151954]
[1766589996190,0.00055,86817.0,86806.0,0.0116]
[1766589996364,0.16782,86814.0,86806.0,0.0116]
[1766589996545,0.17933887,86814.0,86803.0,0.0116]
[1766589996749,0.16782,86814.0,86803.0,0.02312033]
[1766589996964,0.16782,86814.0,86803.0,0.0116]
[1766589997158,0.05759506,86813.0,86803.0,0.0116]
[1766589997370,0.16782,86814.0,86803.0,0.0116]
[1766589997577,0.17933887,86814.0,86803.0,0.0116]
[1766589997758,0.16782,86814.0,86803.0,0.0116]
[1766589997961,0.16782,86814.0,86807.0,0.0115198]
[1766589998164,0.0116,86817.0,86812.0,0.01151914]
[1766589998381,0.16632,86828.0,86815.0,0.01151874]
[1766589998613,0.16632,86828.0,86821.0,0.01151795]
[1766589998848,0.16632,86828.0,86817.0,0.01151848]
[1766589998849,0.16632,86843.0,86830.0,0.01122169]
[1766589999023,0.16632,86843.0,86828.0,0.0116]
[1766589999200,0.16632,86843.0,86828.0,0.02311702]
[1766589999424,0.16632,86843.0,86828.0,0.01105]
[1766589999425,0.01151543,86840.0,86828.0,0.01105]
[1766589999599,0.17823596,86836.0,86828.0,0.01105]
[1766589999798,0.01151622,86834.0,86828.0,0.01105]
[1766589999997,0.06909986,86831.0,86828.0,0.01105]
[1766590000198,0.01151781,86822.0,86818.0,0.0116]
[1766590000400,0.00101357,86819.0,86818.0,0.01170665]
[1766590000891,0.00046457,86819.0,86818.0,0.01170665]
[1766590001435,0.00046457,86819.0,86818.0,0.00010665]
[1766590001843,0.00046457,86819.0,86818.0,6.5e-07]
[1766590002664,0.05805565,86819.0,86818.0,6.5e-07]
[1766590002879,0.00046457,86819.0,86818.0,6.5e-07]
[1766590003999,0.01151848,86817.0,86812.0,0.0116]
[1766590004223,0.00010653,86817.0,86812.0,0.0116]
[1766590004435,0.01151688,86829.0,86812.0,0.02267614]
[1766590004607,0.23027127,86855.0,86830.0,0.01151675]
[1766590004784,0.23027127,86855.0,86845.0,0.0276807]
[1766590004785,0.01151436,86848.0,86845.0,0.0276807]
[1766590004996,1e-08,86846.0,86845.0,0.0276807]